[Event "Chinese Team-ch Men 2025"]
[Site "Zhang Jiakou Hebei"]
[Date "2025.04.28"]
[Round "4.32"]
[White "Zhang, Jingran"]
[Black "Fang, Zelong"]
[Result "1-0"]
[Annotator "NA RC"]
[ECO "A33"]
[WhiteElo "1787"]
[BlackElo "1633"]
[PlyCount "139"]
[EventDate "2025.04.26"]
[EventType "team-tourn"]
[EventCountry "CHN"]
[SourceTitle "playchess.com"]
[Source "ChessBase"]
[SourceQuality "1"]
[TimeControl "5400+30"]

1. Nf3 {[%emt 0:00:04]} c5 {[%emt 0:00:03]} 2. c4 {[%emt 0:00:05]} e6 {[%emt 0:00:03]} 3. g3 {[%emt 0:00:03]} Nf6 {[%emt 0:00:04]} 4. Bg2 {[%emt 0:00:06]} Nc6 {[%emt 0:00:21]} 5. O-O {[%emt 0:00:08]} Be7 {[%emt 0:00:09]} 6. Nc3 {[%emt 0:00:17]} O-O {[%emt 0:00:48]} 7. d4 {[%emt 0:00:52]} cxd4 {[%emt 0:04:40]} 8. Nxd4 {[%emt 0:00:07]} Bc5 {[%emt 0:00:41]} 9. Ndb5 {[%emt 0:01:57]} a6 {[%emt 0:02:38]} 10. Nd6 {[%emt 0:00:58]} Qc7 {[%emt 0:02:00]} 11. Nxc8 {[%emt 0:11:18]} Raxc8 {[%emt 0:02:26]} 12. Bf4 {[%emt 0:00:08]} Qd8 {[%emt 0:04:24]} 13. Qd2 {[%emt 0:02:45]} Qe7 {[%emt 0:07:27]} 14. Rfd1 {[%emt 0:03:52]} Rfd8 {[%emt 0:00:28]} 15. Bd6 {[%emt 0:02:33]} Bxd6 {[%emt 0:00:49]} 16. Qxd6 {[%emt 0:00:06]} Qxd6 {[%emt 0:02:03]} 17. Rxd6 {[%emt 0:00:06]} Ne8 {[%emt 0:00:26]} 18. Rd2 {[%emt 0:01:49]} Na5 {[%emt 0:00:57]} 19. b3 {[%emt 0:06:38]} b5 {[%emt 0:00:25]} 20. Rad1 {[%emt 0:00:15]} d5 {[%emt 0:11:03]} 21. e4 {[%emt 0:01:45]} bxc4 {[%emt 0:01:57]} 22. b4 {[%emt 0:00:22]} Nc6 {[%emt 0:00:03]} 23. exd5 {[%emt 0:00:06]} Nxb4 {[%emt 0:00:07]} 24. dxe6 {[%emt 0:00:04]} Rxd2 {[%emt 0:00:04]} 25. exf7+ {[%emt 0:00:28]} Kxf7 {[%emt 0:00:06]} 26. Rxd2 {[%emt 0:00:02]} Nf6 {[%emt 0:09:33]} 27. a3 {[%emt 0:00:52]} Nd3 {[%emt 0:01:49]} 28. Bb7 {[%emt 0:00:24]} Rb8 {[%emt 0:01:39]} 29. Bxa6 {[%emt 0:02:50]} Ne5 {[%emt 0:09:35]} 30. Re2 {[%emt 0:02:33]} Rb3 {[%emt 0:04:24]} 31. Rxe5 {[%emt 0:23:57]} Rxc3 {[%emt 0:00:07]} 32. a4 {[%emt 0:01:02]} Rc1+ {[%emt 0:00:09]} 33. Kg2 {[%emt 0:00:07]} c3 {[%emt 0:00:33]} 34. Rc5 {[%emt 0:04:51]} Ne4 {[%emt 0:01:10]} 35. Rc7+ {[%emt 0:00:56]} Kf6 {[%emt 0:03:35]} 36. Bd3 {[%emt 0:02:39]} Ng5 {[%emt 0:00:06]} 37. a5 {[%emt 0:00:44]} Ne6 {[%emt 0:01:30]} 38. Rc6 {[%emt 0:00:07]} Ke5 {[%emt 0:00:05]} 39. a6 {[%emt 0:02:48]} Kd4 {[%emt 0:00:33]} 40. a7 {[%emt 0:01:18]} Ra1 {[%emt 0:00:03]} 41. Ba6 {[%emt 0:00:11]} Nc7 {[%emt 0:00:05]} 42. Rc4+ {[%emt 0:00:12]} Kd5 {[%emt 0:00:17]} 43. Rxc3 {[%emt 0:00:27]} Rxa6 {[%emt 0:00:39]} 44. Rxc7 {[%emt 0:00:05]} g5 {[%emt 0:00:05]} 45. Rxh7 {[%emt 0:00:07]} Ke4 {[%emt 0:00:03]} 46. h3 {[%emt 0:01:03]} Kf5 {[%emt 0:00:10]} 47. Rb7 {[%emt 0:00:05]} Ra1 {[%emt 0:00:06]} 48. g4+ {[%emt 0:01:33]} Kf4 {[%emt 0:00:11]} 49. Rf7+ {[%emt 0:00:05]} Ke4 {[%emt 0:00:03]} 50. Rf5 {[%emt 0:00:05]} Rxa7 {[%emt 0:00:04]} 51. Rxg5 {[%emt 0:00:03]} Rf7 {[%emt 0:00:13]} 52. f3+ {[%emt 0:01:00]} Ke3 {[%emt 0:00:21]} 53. Re5+ {[%emt 0:00:06]} Kd4 {[%emt 0:00:05]} 54. Re4+ {[%emt 0:00:06]} Kd5 {[%emt 0:00:03]} 55. h4 {[%emt 0:00:05]} Rh7 {[%emt 0:00:04]} 56. g5 {[%emt 0:00:05]} Rg7 {[%emt 0:00:09]} 57. Kg3 {[%emt 0:00:06]} Rg8 {[%emt 0:00:04]} 58. Kg4 {[%emt 0:00:05]} Ra8 {[%emt 0:00:04]} 59. g6 {[%emt 0:00:11]} Ra1 {[%emt 0:00:03]} 60. Kg5 {[%emt 0:00:14]} Rg1+ {[%emt 0:00:05]} 61. Rg4 {[%emt 0:00:00]} Ra1 {[%emt 0:00:13]} 62. g7 {[%emt 0:00:06]} Ra8 {[%emt 0:00:05]} 63. Kh6 {[%emt 0:00:06]} Ra6+ {[%emt 0:00:04]} 64. Rg6 {[%emt 0:00:04]} Ra4 {[%emt 0:00:10]} 65. g8=Q+ {[%emt 0:00:08]} Ke5 {[%emt 0:00:08]} 66. Qe6+ {[%emt 0:00:07]} Kf4 {[%emt 0:00:04]} 67. Rg4+ {[%emt 0:00:14]} Kxf3 {[%emt 0:00:07]} 68. Qf5+ {[%emt 0:00:04]} Ke3 {[%emt 0:00:05]} 69. Rg3+ {[%emt 0:00:04]} Ke2 {[%emt 0:00:05]} 70. Qd3+ {[%emt 0:00:06]} 1-0

[Event "Chinese Team-ch Men 2025"]
[Site "Zhang Jiakou Hebei"]
[Date "2025.04.28"]
[Round "4.33"]
[White "Ma, Lin"]
[Black "Fan, Yupan"]
[Result "1-0"]
[Annotator "RC"]
[ECO "D36"]
[WhiteElo "2221"]
[BlackElo "1527"]
[PlyCount "81"]
[EventDate "2025.04.26"]
[EventType "team-tourn"]
[EventCountry "CHN"]
[SourceTitle "playchess.com"]
[Source "ChessBase"]
[SourceQuality "1"]
[TimeControl "5400+30"]

1. d4 {[%emt 0:00:04]} d5 {[%emt 0:00:06]} 2. c4 {[%emt 0:00:05]} e6 {[%emt 0:00:05]} 3. Nc3 {[%emt 0:00:06]} Nf6 {[%emt 0:00:13]} 4. Bg5 {[%emt 0:00:09]} Be7 {[%emt 0:00:32]} 5. e3 {[%emt 0:00:06]} c6 {[%emt 0:00:13]} 6. Nf3 {[%emt 0:00:26]} O-O {[%emt 0:01:02]} 7. Rc1 {[%emt 0:00:14]} Nbd7 {[%emt 0:02:27]} 8. Bd3 {[%emt 0:00:09]} b6 {[%emt 0:04:06]} 9. cxd5 {[%emt 0:03:15]} exd5 {[%emt 0:01:11]} 10. O-O {[%emt 0:00:32]} Bb7 {[%emt 0:01:49]} 11. Qc2 {[%emt 0:02:28]} h6 {[%emt 0:00:49]} 12. Bh4 {[%emt 0:00:42]} c5 {[%emt 0:01:03]} 13. Rfd1 {[%emt 0:01:55]} c4 {[%emt 0:03:52]} 14. Bf5 {[%emt 0:01:37]} Re8 {[%emt 0:02:19]} 15. b3 {[%emt 0:02:42]} Rc8 {[%emt 0:01:47]} 16. Ne5 {[%emt 0:01:10]} Bc6 {[%emt 0:03:54]} 17. Bxf6 {[%emt 0:06:16]} Bxf6 {[%emt 0:00:31]} 18. Nxc6 {[%emt 0:00:11]} Rxc6 {[%emt 0:01:48]} 19. Nxd5 {[%emt 0:00:05]} b5 {[%emt 0:01:03]} 20. Qe2 {[%emt 0:07:09]} Nf8 {[%emt 0:11:21]} 21. bxc4 {[%emt 0:00:32]} bxc4 {[%emt 0:01:30]} 22. Nxf6+ {[%emt 0:00:17]} Qxf6 {[%emt 0:00:31]} 23. Bg4 {[%emt 0:00:17]} Qg5 {[%emt 0:03:22]} 24. Bf3 {[%emt 0:00:27]} Rf6 {[%emt 0:04:29]} 25. Rxc4 {[%emt 0:00:40]} Ng6 {[%emt 0:00:53]} 26. Rc5 {[%emt 0:03:16]} Rf5 {[%emt 0:01:04]} 27. Qb5 {[%emt 0:00:03]} Ree5 {[%emt 0:18:25]} 28. dxe5 {[%emt 0:02:34]} Rxf3 {[%emt 0:01:14]} 29. e6 {[%emt 0:00:11]} Qg4 {[%emt 0:00:21]} 30. Rd4 {[%emt 0:03:11]} Rf4 {[%emt 0:04:49]} 31. exf7+ {[%emt 0:00:39]} Kh7 {[%emt 0:01:12]} 32. f8=N+ {[%emt 0:00:47]} Nxf8 {[%emt 0:00:33]} 33. Rxf4 {[%emt 0:00:58]} Qd1+ {[%emt 0:00:22]} 34. Qf1 {[%emt 0:00:05]} Qd6 {[%emt 0:00:03]} 35. Qb1+ {[%emt 0:00:22]} Ng6 {[%emt 0:00:54]} 36. Rg4 {[%emt 0:00:09]} Qf6 {[%emt 0:00:51]} 37. h4 {[%emt 0:00:26]} Qb6 {[%emt 0:01:41]} 38. Qc2 {[%emt 0:01:46]} Qe6 {[%emt 0:01:48]} 39. Rg3 {[%emt 0:00:09]} Kg8 {[%emt 0:02:40]} 40. Rxg6 {[%emt 0:00:11]} Qf7 {[%emt 0:00:36]} 41. Rc8+ {[%emt 0:00:09]} 1-0

[Event "Chinese Team-ch Men 2025"]
[Site "Zhang Jiakou Hebei"]
[Date "2025.04.29"]
[Round "5.1"]
[White "Wen, Yang"]
[Black "Li, Chao b"]
[Result "1/2-1/2"]
[Annotator "TA"]
[ECO "B73"]
[WhiteElo "2572"]
[BlackElo "2624"]
[PlyCount "61"]
[EventDate "2025.04.26"]
[EventType "team-tourn"]
[EventCountry "CHN"]
[SourceTitle "playchess.com"]
[Source "ChessBase"]
[SourceQuality "1"]
[TimeControl "5400+30"]

{[%evp 16,61,30,0,6,8,29,24,30,0,0,-28,-24,-20,-20,-33,-12,-14,-13,-18,-19,-20,-15,-24,-22,-23,-20,-21,-22,-17,0,0,0,0,0,0,0,0,0,0,0,0,0,0,0,0,0,0]} 1. e4 {[%emt 0:00:05]} c5 {[%emt 0:00:32]} 2. Nf3 {[%emt 0:00:17]} d6 {[%emt 0:00:07]} 3. d4 {[%emt 0:01:19]} cxd4 {[%emt 0:00:32]} 4. Nxd4 {[%emt 0:00:06]} Nf6 {[%emt 0:00:05]} 5. Nc3 {[%emt 0:00:13]} g6 {[%emt 0:02:53]} 6. Be2 {[%emt 0:04:37]} Bg7 {[%emt 0:00:50]} 7. O-O {[%emt 0:00:08]} O-O {[%emt 0:00:23]} 8. Be3 {[%emt 0:00:18]} Nc6 {[%emt 0:00:21]} 9. a4 {[%emt 0:04:47]} Nxd4 {[%emt 0:04:42] B73: Sicilian Dragon: Classical System without 9 Nb3.} 10. Bxd4 {[%emt 0:01:43]} Bd7 $146 {[%emt 0:00:02]} (10... Qa5 11. Qd3 Be6 12. f4 Rfc8 13. b3 Nd7 14. Nb5 Nc5 15. Qe3 a6 16. Bxg7 Kxg7 17. Nd4 {0-1 Molchanov,A (2402)-Kepeshchuk,M (2269) Titled Tuesday intern op 12th Jan blitz 2021 (3)}) 11. a5 {[%emt 0:06:09]} Bc6 {[%emt 0:02:46] White has an edge.} 12. e5 {[%emt 0:04:17]} Ne4 {[%emt 0:05:14]} 13. exd6 {[%emt 0:02:08] [#] Threatens to win with Bxg7.} Nxc3 {[%emt 0:00:28] Black sacrificed a pawn} 14. Bxc3 {[%emt 0:00:20]} Bxc3 {[%emt 0:00:13]} 15. bxc3 {[%emt 0:00:59]} Qxd6 {[%emt 0:00:16]} (15... exd6 {is interesting.} 16. Qd4 Qg5 17. f3 Rfe8) 16. Qxd6 {[%emt 0:00:07]} exd6 {[%emt 0:00:02]} 17. Rfd1 {[%emt 0:01:10]} Rfe8 {[%emt 0:00:11]} 18. Bf1 {[%emt 0:02:34]} Re6 {[%emt 0:01:04]} 19. f3 {[%emt 0:09:07]} Kf8 {[%emt 0:01:44]} 20. Bc4 {[%emt 0:02:05]} Rf6 {[%emt 0:00:37]} 21. Bd5 {[%emt 0:04:31] The position is equal.} Rc8 {[%emt 0:01:33]} 22. Rab1 {[%emt 0:02:03]} b6 {[%emt 0:03:52]} 23. axb6 {[%emt 0:01:21]} axb6 {[%emt 0:00:15]} 24. Rxb6 {[%emt 0:00:06]} Bxd5 {[%emt 0:00:04]} 25. Rxd5 {[%emt 0:00:06]} Rxc3 {[%emt 0:00:07]} 26. Rbxd6 {[%emt 0:00:08]} Rxd6 {[%emt 0:00:04]} 27. Rxd6 {[%emt 0:00:05]} Rxc2 $11 {[%emt 0:00:05] KR-KR} 28. Rd4 {[%emt 0:00:06]} h5 {[%emt 0:00:07]} 29. h4 {[%emt 0:00:06]} Kg7 {[%emt 0:00:04]} 30. Kh2 {[%emt 0:00:06]} Ra2 {[%emt 0:00:04]} 31. Re4 {[%emt 0:00:06] An even fight not without its subleties.   Weighted Error Value: White=0.07 (flawless) /Black=0.05 (flawless)   Inaccurate:     	White=2     	---        OK:         	White=10    	Black=6      Best:        	---       	Black=1} 1/2-1/2

[Event "Chinese Team-ch Men 2025"]
[Site "Zhang Jiakou Hebei"]
[Date "2025.04.29"]
[Round "5.2"]
[White "Xiu, Deshun"]
[Black "Zhao, Jun"]
[Result "1/2-1/2"]
[Annotator "RC"]
[ECO "B52"]
[WhiteElo "2516"]
[BlackElo "2532"]
[PlyCount "66"]
[EventDate "2025.04.26"]
[EventType "team-tourn"]
[EventCountry "CHN"]
[SourceTitle "playchess.com"]
[Source "ChessBase"]
[SourceQuality "1"]
[TimeControl "5400+30"]

1. e4 {[%emt 0:00:21]} c5 {[%emt 0:00:25]} 2. Nf3 {[%emt 0:00:29]} d6 {[%emt 0:00:24]} 3. Bb5+ {[%emt 0:00:22]} Bd7 {[%emt 0:01:04]} 4. Bxd7+ {[%emt 0:02:38]} Qxd7 {[%emt 0:00:37]} 5. c4 {[%emt 0:02:40]} Nf6 {[%emt 0:02:13]} 6. Nc3 {[%emt 0:00:15]} g6 {[%emt 0:00:09]} 7. d4 {[%emt 0:02:18]} cxd4 {[%emt 0:00:12]} 8. Nxd4 {[%emt 0:00:05]} Bg7 {[%emt 0:00:26]} 9. O-O {[%emt 0:07:34]} O-O {[%emt 0:04:17]} 10. f3 {[%emt 0:03:55]} Rc8 {[%emt 0:04:20]} 11. b3 {[%emt 0:01:53]} d5 {[%emt 0:01:08]} 12. exd5 {[%emt 0:05:32]} Nxd5 {[%emt 0:00:19]} 13. Nxd5 {[%emt 0:00:25]} e6 {[%emt 0:00:15]} 14. Bh6 {[%emt 0:01:18]} exd5 {[%emt 0:00:29]} 15. Bxg7 {[%emt 0:00:10]} Kxg7 {[%emt 0:00:06]} 16. Nb5 {[%emt 0:01:06]} dxc4 {[%emt 0:00:35]} 17. Nd6 {[%emt 0:00:46]} Rd8 {[%emt 0:02:36]} 18. Nxb7 {[%emt 0:03:18]} Qxd1 {[%emt 0:00:54]} 19. Re1 Qxa1 20. Rxa1 Rd1+ 21. Rxd1 cxb3 22. axb3 Nc6 23. Rd6 Rb8 24. Rxc6 Rxb7 25. Ra6 Rb6 26. b4 Rxb4 27. Rxa7 Rb3 28. Ra5 h5 29. Ra4 Rb1+ 30. Kf2 Rb2+ 31. Kg1 Rb1+ 32. Kf2 Rb2+ 33. Kg1 Rb1+ {[%emt 0:07:30]} 1/2-1/2

[Event "Chinese Team-ch Men 2025"]
[Site "Zhang Jiakou Hebei"]
[Date "2025.04.29"]
[Round "5.3"]
[White "Xiao, Tong"]
[Black "Peng, Hongchi"]
[Result "1-0"]
[Annotator "RC"]
[ECO "C02"]
[WhiteElo "2496"]
[BlackElo "2419"]
[PlyCount "81"]
[EventDate "2025.04.26"]
[EventType "team-tourn"]
[EventCountry "CHN"]
[SourceTitle "playchess.com"]
[Source "ChessBase"]
[SourceQuality "1"]
[TimeControl "5400+30"]

1. e4 {[%emt 0:00:04]} e6 {[%emt 0:00:07]} 2. d4 {[%emt 0:00:41]} d5 {[%emt 0:00:05]} 3. e5 {[%emt 0:00:29]} c5 {[%emt 0:00:07]} 4. c3 {[%emt 0:00:05]} Nc6 {[%emt 0:00:07]} 5. Nf3 {[%emt 0:00:06]} Bd7 {[%emt 0:00:04]} 6. Be2 {[%emt 0:00:24]} Nge7 {[%emt 0:00:07]} 7. O-O {[%emt 0:00:21]} Nf5 {[%emt 0:00:09]} 8. dxc5 {[%emt 0:02:00]} Bxc5 {[%emt 0:00:04]} 9. Bd3 {[%emt 0:00:14]} Nh4 {[%emt 0:15:01]} 10. Nbd2 {[%emt 0:02:42]} f5 {[%emt 0:01:44]} 11. c4 {[%emt 0:14:48]} Nxf3+ {[%emt 0:08:00]} 12. Nxf3 {[%emt 0:00:06]} d4 {[%emt 0:09:17]} 13. a3 {[%emt 0:11:54]} a5 {[%emt 0:02:21]} 14. b3 {[%emt 0:00:55]} O-O {[%emt 0:00:55]} 15. Qe2 {[%emt 0:00:16]} Qe7 {[%emt 0:06:22]} 16. Ne1 {[%emt 0:00:47]} g5 {[%emt 0:04:52]} 17. Nc2 {[%emt 0:08:04]} Qg7 {[%emt 0:03:14]} 18. Re1 {[%emt 0:04:26]} f4 {[%emt 0:04:07]} 19. Bd2 {[%emt 0:09:26]} f3 {[%emt 0:10:23]} 20. Qe4 {[%emt 0:03:33]} fxg2 {[%emt 0:06:24]} 21. Bxg5 {[%emt 0:00:49]} Be7 {[%emt 0:06:54]} 22. Bxe7 {[%emt 0:00:12]} Nxe7 {[%emt 0:00:06]} 23. Nxd4 {[%emt 0:00:18]} Nf5 {[%emt 0:00:54]} 24. Nxf5 {[%emt 0:00:49]} Rxf5 {[%emt 0:06:14]} 25. Qxb7 {[%emt 0:00:06]} Rff8 {[%emt 0:00:51]} 26. Qxg2 {[%emt 0:00:23]} Rab8 {[%emt 0:00:24]} 27. Rab1 {[%emt 0:00:32]} Rf4 {[%emt 0:00:43]} 28. Qxg7+ {[%emt 0:00:10]} Kxg7 {[%emt 0:00:02]} 29. Re4 {[%emt 0:01:16]} Rf3 {[%emt 0:00:45]} 30. Rd4 {[%emt 0:01:19]} Bc6 {[%emt 0:01:43]} 31. b4 {[%emt 0:00:15]} Rh3 {[%emt 0:02:06]} 32. Rg4+ {[%emt 0:01:31]} Kf7 {[%emt 0:01:35]} 33. Rg3 {[%emt 0:00:13]} Rxg3+ {[%emt 0:00:08]} 34. hxg3 {[%emt 0:00:09]} Rd8 {[%emt 0:00:02]} 35. Rb3 {[%emt 0:01:12]} h5 {[%emt 0:00:53]} 36. b5 {[%emt 0:00:10]} Ba8 {[%emt 0:00:03]} 37. f4 {[%emt 0:00:36]} Rd4 {[%emt 0:00:12]} 38. Kf2 {[%emt 0:00:49]} h4 {[%emt 0:00:06]} 39. Ke3 {[%emt 0:00:19]} Rxd3+ {[%emt 0:00:31]} 40. Rxd3 {[%emt 0:00:06]} h3 {[%emt 0:00:04]} 41. Rd2 {[%emt 0:00:03]} 1-0

[Event "Chinese Team-ch Men 2025"]
[Site "Zhang Jiakou Hebei"]
[Date "2025.04.29"]
[Round "5.4"]
[White "Zhang, Di"]
[Black "Huang, Renjie"]
[Result "1/2-1/2"]
[Annotator "RC"]
[ECO "C47"]
[WhiteElo "2406"]
[BlackElo "2491"]
[PlyCount "69"]
[EventDate "2025.04.26"]
[EventType "team-tourn"]
[EventCountry "CHN"]
[SourceTitle "playchess.com"]
[Source "ChessBase"]
[SourceQuality "1"]
[TimeControl "5400+30"]

1. e4 {[%emt 0:00:03]} e5 {[%emt 0:00:15]} 2. Nc3 {[%emt 0:00:08]} Nf6 {[%emt 0:00:10]} 3. g3 {[%emt 0:00:05]} d5 {[%emt 0:00:54]} 4. exd5 {[%emt 0:00:05]} Nxd5 {[%emt 0:00:05]} 5. Bg2 {[%emt 0:00:04]} Nxc3 {[%emt 0:01:14]} 6. bxc3 {[%emt 0:00:02]} Bd6 {[%emt 0:02:15]} 7. Nf3 {[%emt 0:00:08]} O-O {[%emt 0:01:14]} 8. O-O {[%emt 0:00:04]} Nc6 {[%emt 0:01:06]} 9. d4 {[%emt 0:00:08]} Bg4 {[%emt 0:02:20]} 10. h3 {[%emt 0:11:24]} Bh5 {[%emt 0:01:04]} 11. g4 {[%emt 0:00:06]} Bg6 {[%emt 0:00:24]} 12. Rb1 {[%emt 0:00:03]} exd4 {[%emt 0:04:38]} 13. cxd4 {[%emt 0:12:52]} Be4 {[%emt 0:00:59]} 14. Re1 {[%emt 0:19:30]} f5 {[%emt 0:04:56]} 15. gxf5 {[%emt 0:09:12]} Bxf5 {[%emt 0:00:29]} 16. Rxb7 {[%emt 0:07:57]} Qc8 {[%emt 0:02:59]} 17. Ne5 {[%emt 0:10:44]} Qxb7 {[%emt 0:04:54]} 18. Bxc6 {[%emt 0:00:02]} Qc8 {[%emt 0:00:09]} 19. Bxa8 {[%emt 0:00:55]} Qxa8 {[%emt 0:00:14]} 20. Re3 {[%emt 0:00:09]} Qd8 {[%emt 0:03:22]} 21. c3 {[%emt 0:13:00]} Be6 {[%emt 0:02:35]} 22. Qc2 {[%emt 0:03:19]} c5 {[%emt 0:11:40]} 23. Rg3 {[%emt 0:02:31]} Kh8 {[%emt 0:00:12]} 24. Qe2 {[%emt 0:02:02]} cxd4 {[%emt 0:03:22]} 25. cxd4 {[%emt 0:00:06]} Qb6 {[%emt 0:01:14]} 26. Ba3 {[%emt 0:01:47]} Bxa3 {[%emt 0:01:38]} 27. Rxa3 {[%emt 0:00:01]} Qxd4 {[%emt 0:00:16]} 28. Rd3 {[%emt 0:05:02]} Qc5 {[%emt 0:04:35]} 29. Qe3 {[%emt 0:00:29]} Qb5 {[%emt 0:00:32]} 30. a3 {[%emt 0:01:26]} Re8 {[%emt 0:02:25]} 31. Qg5 {[%emt 0:00:59]} Qb1+ {[%emt 0:01:22]} 32. Kh2 {[%emt 0:00:22]} Qb2 {[%emt 0:07:24]} 33. Rf3 {[%emt 0:00:40]} Kg8 {[%emt 0:00:07]} 34. Ng4 {[%emt 0:00:50]} Qb8+ {[%emt 0:01:14]} 35. Rg3 {[%emt 0:00:29]} 1/2-1/2

[Event "Chinese Team-ch Men 2025"]
[Site "Zhang Jiakou Hebei"]
[Date "2025.04.29"]
[Round "5.5"]
[White "Xu, Yi"]
[Black "Bai, Jinshi"]
[Result "1/2-1/2"]
[Annotator "RC"]
[ECO "C47"]
[WhiteElo "2480"]
[BlackElo "2569"]
[PlyCount "54"]
[EventDate "2025.04.26"]
[EventType "team-tourn"]
[EventCountry "CHN"]
[SourceTitle "playchess.com"]
[Source "ChessBase"]
[SourceQuality "1"]
[TimeControl "5400+30"]

1. e4 {[%emt 0:00:05]} e5 {[%emt 0:00:15]} 2. Nf3 {[%emt 0:00:08]} Nc6 {[%emt 0:00:27]} 3. Nc3 {[%emt 0:00:07]} Nf6 {[%emt 0:00:40]} 4. d4 {[%emt 0:00:37]} exd4 {[%emt 0:00:49]} 5. Nxd4 {[%emt 0:00:07]} Bb4 {[%emt 0:00:19]} 6. Nxc6 {[%emt 0:00:52]} bxc6 {[%emt 0:00:38]} 7. Bd3 {[%emt 0:00:08]} O-O {[%emt 0:00:27]} 8. O-O {[%emt 0:00:14]} d5 {[%emt 0:00:23]} 9. Bd2 {[%emt 0:01:51]} Bxc3 {[%emt 0:03:03]} 10. Bxc3 {[%emt 0:00:17]} dxe4 {[%emt 0:00:36]} 11. Bxf6 {[%emt 0:00:48]} Qxf6 {[%emt 0:00:06]} 12. Bxe4 {[%emt 0:00:06]} Qxb2 {[%emt 0:00:57]} 13. Bxc6 {[%emt 0:02:15]} Rb8 {[%emt 0:00:48]} 14. Rb1 {[%emt 0:05:15]} Qxb1 {[%emt 0:00:26]} 15. Qxb1 {[%emt 0:00:05]} Rxb1 {[%emt 0:00:09]} 16. Rxb1 {[%emt 0:00:04]} Rd8 {[%emt 0:04:25]} 17. Bf3 {[%emt 0:03:15]} Kf8 {[%emt 0:04:42]} 18. Rb8 {[%emt 0:05:35]} Re8 {[%emt 0:00:54]} 19. h4 {[%emt 0:02:34]} Ba6 {[%emt 0:00:36]} 20. Rb3 {[%emt 0:00:38]} Bc4 {[%emt 0:01:55]} 21. Rb7 {[%emt 0:05:49]} a6 {[%emt 0:04:43]} 22. Rxc7 {[%emt 0:01:11]} Bxa2 {[%emt 0:00:06]} 23. c4 {[%emt 0:00:51]} Re7 {[%emt 0:01:18]} 24. Rc8+ {[%emt 0:00:07]} Re8 {[%emt 0:00:05]} 25. Rc7 {[%emt 0:00:07]} Re7 {[%emt 0:00:16]} 26. Rc8+ {[%emt 0:00:08]} Re8 {[%emt 0:00:03]} 27. Rc7 {[%emt 0:00:09]} Re7 {[%emt 0:00:12]} 1/2-1/2

[Event "Chinese Team-ch Men 2025"]
[Site "Zhang Jiakou Hebei"]
[Date "2025.04.29"]
[Round "5.6"]
[White "Kong, Xiangrui"]
[Black "Lou, Yiping"]
[Result "1/2-1/2"]
[Annotator "RC"]
[ECO "E48"]
[WhiteElo "2451"]
[BlackElo "2464"]
[PlyCount "81"]
[EventDate "2025.04.26"]
[EventType "team-tourn"]
[EventCountry "CHN"]
[SourceTitle "playchess.com"]
[Source "ChessBase"]
[SourceQuality "1"]
[TimeControl "5400+30"]

1. d4 {[%emt 0:00:02]} Nf6 {[%emt 0:00:57]} 2. c4 {[%emt 0:00:06]} e6 {[%emt 0:00:17]} 3. Nc3 {[%emt 0:00:05]} Bb4 {[%emt 0:00:51]} 4. e3 {[%emt 0:00:07]} O-O {[%emt 0:00:32]} 5. Bd3 {[%emt 0:00:04]} c5 {[%emt 0:07:32]} 6. Nge2 {[%emt 0:00:15]} d5 {[%emt 0:01:36]} 7. cxd5 {[%emt 0:01:37]} cxd4 {[%emt 0:03:33]} 8. exd4 {[%emt 0:00:06]} Qxd5 {[%emt 0:01:53]} 9. O-O {[%emt 0:05:07]} Qh5 {[%emt 0:00:35]} 10. a3 {[%emt 0:18:28]} Bd6 {[%emt 0:02:18]} 11. Bf4 {[%emt 0:00:55]} Bxf4 {[%emt 0:04:17]} 12. Nxf4 {[%emt 0:00:02]} Qh6 {[%emt 0:00:05]} 13. Qf3 {[%emt 0:11:19]} Nc6 {[%emt 0:05:12]} 14. Nfe2 {[%emt 0:00:59]} Rd8 {[%emt 0:02:37]} 15. Rad1 {[%emt 0:01:27]} Bd7 {[%emt 0:11:51]} 16. Bb1 {[%emt 0:04:25]} Rab8 {[%emt 0:03:54]} 17. d5 {[%emt 0:04:36]} exd5 {[%emt 0:11:54]} 18. Nxd5 {[%emt 0:00:06]} Be6 {[%emt 0:00:33]} 19. Nxf6+ {[%emt 0:01:00]} Qxf6 {[%emt 0:00:03]} 20. Qxf6 {[%emt 0:00:06]} gxf6 {[%emt 0:00:03]} 21. Nf4 {[%emt 0:04:00]} h6 {[%emt 0:14:40]} 22. h3 {[%emt 0:03:12]} Kf8 {[%emt 0:02:05]} 23. Rc1 {[%emt 0:06:42]} Rd4 {[%emt 0:02:10]} 24. Nxe6+ {[%emt 0:15:18]} fxe6 {[%emt 0:00:04]} 25. Rfe1 {[%emt 0:00:26]} Ke7 {[%emt 0:05:38]} 26. Ba2 {[%emt 0:00:54]} e5 {[%emt 0:01:18]} 27. b4 {[%emt 0:06:56]} Rd2 {[%emt 0:00:35]} 28. Bb1 {[%emt 0:00:24]} Rbd8 {[%emt 0:00:36]} 29. Be4 {[%emt 0:02:29]} Nd4 {[%emt 0:02:28]} 30. Rc7+ {[%emt 0:00:28]} Rd7 {[%emt 0:01:45]} 31. Rxd7+ {[%emt 0:00:50]} Kxd7 {[%emt 0:00:03]} 32. Bxb7 {[%emt 0:00:14]} Nc2 {[%emt 0:01:45]} 33. Rc1 {[%emt 0:01:50]} Nxa3 {[%emt 0:00:29]} 34. Be4 {[%emt 0:03:56]} Rd4 {[%emt 0:02:14]} 35. Bf5+ {[%emt 0:00:07]} Kd6 {[%emt 0:00:17]} 36. Ra1 {[%emt 0:00:36]} Nb5 {[%emt 0:00:37]} 37. Ra6+ {[%emt 0:00:14]} Ke7 {[%emt 0:00:24]} 38. Ra5 {[%emt 0:00:15]} Rxb4 {[%emt 0:02:45]} 39. Bd3 {[%emt 0:00:01]} Nd6 {[%emt 0:01:42]} 40. Rxa7+ {[%emt 0:00:02]} Rb7 {[%emt 0:00:21]} 41. Rxb7+ {[%emt 0:02:36]} 1/2-1/2

[Event "Chinese Team-ch Men 2025"]
[Site "Zhang Jiakou Hebei"]
[Date "2025.04.29"]
[Round "5.7"]
[White "Meng, Yihan"]
[Black "Xie, Kaifan"]
[Result "1/2-1/2"]
[Annotator "RC"]
[ECO "C54"]
[WhiteElo "2433"]
[BlackElo "2435"]
[PlyCount "60"]
[EventDate "2025.04.26"]
[EventType "team-tourn"]
[EventCountry "CHN"]
[SourceTitle "playchess.com"]
[Source "ChessBase"]
[SourceQuality "1"]
[TimeControl "5400+30"]

1. e4 {[%emt 0:00:04]} e5 {[%emt 0:00:18]} 2. Nf3 {[%emt 0:00:05]} Nc6 {[%emt 0:00:04]} 3. Bc4 {[%emt 0:00:04]} Nf6 {[%emt 0:00:06]} 4. d3 {[%emt 0:00:04]} Bc5 {[%emt 0:00:06]} 5. c3 {[%emt 0:00:05]} O-O {[%emt 0:00:06]} 6. O-O {[%emt 0:00:04]} d5 {[%emt 0:00:04]} 7. exd5 {[%emt 0:00:04]} Nxd5 {[%emt 0:00:03]} 8. Re1 {[%emt 0:00:04]} Bg4 {[%emt 0:00:05]} 9. h3 {[%emt 0:00:04]} Bh5 {[%emt 0:00:04]} 10. Nbd2 {[%emt 0:00:04]} Nb6 {[%emt 0:00:06]} 11. Bb3 {[%emt 0:00:03]} Qxd3 {[%emt 0:00:06]} 12. Nxe5 {[%emt 0:00:03]} Qf5 {[%emt 0:00:05]} 13. Nef3 {[%emt 0:00:04]} Rfe8 {[%emt 0:00:06]} 14. g4 {[%emt 0:00:21]} Bxg4 {[%emt 0:00:04]} 15. hxg4 {[%emt 0:00:03]} Qxg4+ {[%emt 0:00:05]} 16. Kh1 {[%emt 0:00:03]} Ne5 {[%emt 0:00:06]} 17. Nh2 {[%emt 0:00:57]} Qg6 {[%emt 0:00:06]} 18. Bc2 {[%emt 0:00:13]} Nd3 {[%emt 0:00:03]} 19. Bxd3 {[%emt 0:00:05]} Qxd3 {[%emt 0:00:02]} 20. Nb3 {[%emt 0:00:13]} Qd5+ {[%emt 0:00:01]} 21. f3 {[%emt 0:10:12]} Rxe1+ {[%emt 0:00:02]} 22. Qxe1 {[%emt 0:00:06]} Bd6 {[%emt 0:00:03]} 23. Nd2 {[%emt 0:20:37]} Kf8 {[%emt 0:00:01]} 24. Ndf1 {[%emt 0:22:01]} Re8 {[%emt 0:13:38]} 25. Qd2 {[%emt 0:03:55]} Qxd2 {[%emt 0:23:13]} 26. Bxd2 {[%emt 0:16:29]} Nc4 {[%emt 0:00:02]} 27. Re1 {[%emt 0:05:10]} Rxe1 {[%emt 0:00:06]} 28. Bxe1 {[%emt 0:00:04]} Nxb2 {[%emt 0:00:05]} 29. Ne3 {[%emt 0:01:40]} Nd3 {[%emt 0:00:21]} 30. Bd2 {[%emt 0:00:39]} Bf4 {[%emt 0:00:39]} 1/2-1/2